bitfinex/quotes_BTCUSD_20250813
["timestamp","ask_amount","ask_price","bid_price","bid_amount"]
[1755109240626,3.04164039,121640.0,121630.0,2.81289788]
[1755109240901,3.04676039,121640.0,121630.0,2.80468826]
[1755109241314,3.04276039,121640.0,121630.0,2.79647864]
[1755109241537,3.04276039,121640.0,121630.0,2.43128161]
[1755109241538,3.04274504,121640.0,121630.0,2.43128161]
[1755109241747,3.04674504,121640.0,121630.0,2.42307199]
[1755109242188,3.03674504,121640.0,121630.0,2.41486237]
[1755109242381,3.04074504,121640.0,121630.0,1.85262534]
[1755109242590,3.04374504,121640.0,121630.0,1.84441572]
[1755109243153,3.04374504,121640.0,121630.0,1.8362061]
[1755109243353,3.04374504,121640.0,121630.0,1.8362861]
[1755109243558,3.04374504,121640.0,121630.0,1.26583945]
[1755109243992,1.68148794,121640.0,121630.0,1.25766983]
[1755109244210,3.04373428,121640.0,121630.0,1.12650983]
[1755109244422,2.91124985,121640.0,121630.0,1.25766983]
[1755109244636,2.91124985,121640.0,121630.0,1.12650983]
[1755109244637,2.43971513,121640.0,121630.0,1.12650983]
[1755109244842,2.5071603,121640.0,121630.0,1.12650983]
[1755109245014,2.961246,121640.0,121630.0,1.25770983]
[1755109245663,2.936246,121640.0,121630.0,1.25770983]
[1755109246076,3.01873043,121640.0,121630.0,1.25770983]
[1755109246277,2.56464473,121640.0,121630.0,1.12650983]
[1755109246524,2.4571603,121640.0,121630.0,1.25770983]
[1755109246733,2.5071603,121640.0,121630.0,1.25770983]
[1755109246932,2.5071603,121640.0,121630.0,1.25766983]
[1755109247137,1.5989889,121640.0,121630.0,1.25766983]
[1755109247367,2.5071603,121640.0,121630.0,1.25766983]
[1755109247589,2.58964473,121640.0,121630.0,1.25766983]
[1755109247893,2.58964204,121640.0,121630.0,1.25762983]
[1755109248116,2.58964204,121640.0,121630.0,1.25766983]
[1755109249902,1.68147064,121640.0,121630.0,1.25766983]
[1755109250079,2.58964204,121640.0,121630.0,1.25766983]
[1755109250927,2.57429952,121640.0,121630.0,1.12650983]
[1755109251124,2.50203823,121640.0,121630.0,1.25955983]
[1755109251350,2.50403823,121640.0,121630.0,1.12650983]
[1755109251532,2.50715823,121640.0,121630.0,1.25758983]
[1755109252543,2.50715823,121640.0,121630.0,1.12650983]
[1755109252753,2.05307253,121640.0,121630.0,1.25754983]
[1755109252977,2.58265696,121640.0,121630.0,1.25754983]
[1755109253709,2.58265696,121640.0,121630.0,1.25742983]
[1755109253977,2.10229836,121640.0,121630.0,1.12650983]
[1755109254206,2.44505253,121640.0,121630.0,1.26257983]
[1755109254402,2.44505253,121640.0,121630.0,1.13161983]
[1755109254607,2.44505253,121640.0,121630.0,1.26257983]
[1755109255040,2.39689963,121640.0,121630.0,1.26257983]
[1755109255354,2.55253696,121640.0,121630.0,1.26257983]
[1755109256285,2.55453696,121640.0,121630.0,1.25931983]
[1755109256489,2.55453696,121640.0,121630.0,1.25734983]
[1755109256694,2.57953696,121640.0,121630.0,1.25734983]
[1755109257941,2.55453696,121640.0,121630.0,1.25734983]
[1755109258153,2.57953696,121640.0,121630.0,1.25734983]
[1755109259359,2.55453696,121640.0,121630.0,1.25734983]
[1755109259566,2.58265696,121640.0,121630.0,1.25734983]
[1755109260077,2.53919382,121640.0,121630.0,1.25734983]
[1755109260285,2.1004686,121640.0,121630.0,1.25734983]
[1755109260491,2.5545543,121640.0,121630.0,1.25734983]
[1755109261465,2.6408843,121640.0,121630.0,1.25734983]
[1755109262691,2.6408843,121640.0,121630.0,1.25706983]
[1755109262902,2.6408843,121640.0,121630.0,1.25916983]
[1755109263540,2.6408843,121640.0,121630.0,1.12860983]
[1755109263752,2.6408843,121640.0,121630.0,1.25916983]
[1755109264103,2.6158843,121640.0,121630.0,1.25916983]
[1755109264440,2.6408843,121640.0,121630.0,1.25920983]
[1755109265531,2.55639987,121640.0,121630.0,1.26241983]
[1755109266403,2.53139987,121640.0,121630.0,1.26241983]
[1755109266642,2.55639987,121640.0,121630.0,1.26241983]
[1755109267309,2.55604681,121640.0,121630.0,1.26241983]
[1755109267957,2.53104681,121640.0,121630.0,1.26241983]
[1755109268169,2.53104681,121640.0,121630.0,1.13181983]
[1755109268379,2.44043751,121640.0,121630.0,1.13181983]
[1755109268608,2.46543751,121640.0,121630.0,1.26217983]
[1755109269521,2.46543751,121640.0,121630.0,1.13181983]
[1755109269747,2.01170487,121640.0,121630.0,1.26213983]
[1755109269976,2.46543751,121640.0,121630.0,1.26213983]
[1755109270470,2.44043751,121640.0,121630.0,1.26213983]
[1755109270713,2.44043751,121640.0,121630.0,1.13181983]
[1755109270946,1.99333751,121640.0,121630.0,1.26205983]
[1755109271382,1.9933541,121640.0,121630.0,1.26205983]
[1755109271601,1.53962146,121640.0,121630.0,1.26205983]
[1755109271821,1.9933541,121640.0,121630.0,1.26205983]
[1755109272237,1.96591998,121640.0,121630.0,1.26205983]
[1755109272446,2.01407288,121640.0,121630.0,1.13181983]
[1755109272678,1.56034024,121640.0,121630.0,1.26201983]
[1755109273113,2.01407288,121640.0,121630.0,1.26201983]
[1755109273534,1.98507288,121640.0,121630.0,1.26201983]
[1755109273731,2.01407288,121640.0,121630.0,1.26201983]
[1755109274353,2.01107413,121640.0,121630.0,1.26201983]
[1755109274891,2.01307413,121640.0,121630.0,1.26201983]
[1755109275473,1.55934149,121640.0,121630.0,1.26201983]
[1755109275685,2.01307413,121640.0,121630.0,1.26201983]
[1755109276945,2.01307413,121640.0,121630.0,1.13181983]
[1755109277159,2.01307413,121640.0,121630.0,1.26177983]
[1755109277371,2.09555856,121640.0,121630.0,1.26177983]
[1755109278800,1.64182592,121640.0,121630.0,1.26177983]
[1755109278942,2.09555856,121640.0,121630.0,1.26177983]
[1755109280413,2.08018024,121640.0,121630.0,1.26177983]
[1755109280652,2.09555588,121640.0,121630.0,1.26177983]
[1755109280867,1.55933881,121640.0,121630.0,1.26177983]
[1755109281060,2.0130718,121640.0,121630.0,1.26177983]
[1755109282700,2.01307346,121640.0,121630.0,1.26177983]
[1755109284528,2.01522346,121640.0,121630.0,1.13181983]
[1755109284743,2.01522346,121640.0,121630.0,1.25622983]
[1755109285173,2.01522346,121640.0,121630.0,1.12650983]
[1755109285366,2.01522346,121640.0,121630.0,1.25618983]
[1755109285628,2.09770789,121640.0,121630.0,1.12650983]
[1755109285775,2.09770789,121640.0,121630.0,1.25614983]
[1755109285964,2.09770789,121640.0,121630.0,1.12650983]
[1755109286163,2.09770789,121640.0,121630.0,1.25614983]
[1755109286586,2.01522346,121640.0,121630.0,1.25614983]
[1755109286782,2.01307346,121640.0,121630.0,1.26145983]
[1755109287294,1.55934082,121640.0,121630.0,1.26145983]
[1755109287515,2.01307346,121640.0,121630.0,1.26145983]
[1755109287926,2.01307536,121640.0,121630.0,1.26145983]
[1755109288351,1.98807536,121640.0,121630.0,1.26145983]
[1755109288553,2.01307536,121640.0,121630.0,1.26145983]
[1755109289123,2.01107536,121640.0,121630.0,1.26145983]
[1755109289483,2.09055979,121640.0,121630.0,1.26145983]
[1755109289739,2.09356006,121640.0,121630.0,1.26145983]
[1755109289959,2.01107563,121640.0,121630.0,1.26145983]
[1755109291480,2.01107563,121640.0,121630.0,1.36389983]
[1755109294984,2.01107563,121640.0,121630.0,1.06441983]
[1755109296411,2.01107563,121640.0,121630.0,0.93477983]
[1755109296621,2.01107563,121640.0,121630.0,1.06397983]
[1755109297246,2.09558006,121640.0,121630.0,0.92946983]
[1755109297482,2.09558006,121640.0,121630.0,1.05858983]
[1755109297931,2.01309563,121640.0,121630.0,1.06066983]
[1755109298133,2.01309563,121640.0,121630.0,1.06384983]
[1755109298640,1.55936299,121640.0,121630.0,1.06384983]
[1755109298876,1.51696317,121640.0,121630.0,1.06384983]
[1755109299101,1.48989729,121640.0,121630.0,1.55615247]
[1755109299325,1.50734631,121640.0,121630.0,1.10241983]
[1755109299581,1.53234595,121640.0,121630.0,0.97333983]
[1755109299804,1.50434595,121640.0,121630.0,1.10249983]
[1755109300030,1.50334595,121640.0,121630.0,1.10249983]
[1755109300257,1.98507859,121640.0,121630.0,1.06388983]
[1755109300479,2.01209859,121640.0,121630.0,1.05862983]
[1755109300948,2.01209859,121640.0,121630.0,1.06070983]
[1755109301165,2.01209859,121640.0,121630.0,1.06388983]
[1755109301381,2.0120981,121640.0,121630.0,1.06388983]
[1755109301602,2.0120981,121640.0,121630.0,1.36336983]
[1755109303206,2.0120981,121640.0,121630.0,1.23420983]
[1755109303566,2.0120981,121640.0,121630.0,1.06062983]
[1755109303748,2.0120981,121640.0,121630.0,1.05854983]
[1755109304701,2.0120981,121640.0,121630.0,1.05850983]
[1755109305220,2.0120981,121640.0,121630.0,0.92946983]
[1755109305370,2.01209901,121640.0,121630.0,1.06368983]
[1755109305891,2.01007901,121640.0,121630.0,1.06368983]
[1755109306727,2.01067901,121640.0,121630.0,1.06368983]
[1755109307318,1.55694637,121640.0,121630.0,1.06368983]
[1755109307518,2.01067961,121640.0,121630.0,1.06368983]
[1755109308446,2.01068004,121640.0,121630.0,1.06368983]
[1755109308753,2.03510671,121640.0,121630.0,0.93472983]
[1755109308973,2.03510694,121640.0,121630.0,1.05830983]
[1755109309613,2.01068027,121640.0,121630.0,1.05830983]
[1755109311014,2.01068027,121640.0,121630.0,1.06356983]
[1755109311642,2.01068027,121640.0,121630.0,1.35986983]
[1755109312633,2.01068027,121640.0,121630.0,1.22894983]
[1755109312773,2.01068027,121640.0,121630.0,1.35778983]
[1755109315349,1.50819473,121640.0,121630.0,1.26060983]
[1755109315576,1.48319473,121640.0,121630.0,1.13176983]
[1755109315834,1.50634763,121640.0,121630.0,1.26060983]
[1755109317456,1.49096317,121640.0,121630.0,1.26060983]
[1755109317678,1.50634891,121640.0,121630.0,1.26060983]
[1755109317868,1.50634891,121640.0,121630.0,1.06356983]
[1755109318342,1.53134891,121640.0,121630.0,1.06356983]
[1755109318547,1.61383334,121640.0,121630.0,0.93472983]
[1755109318777,2.06756598,121640.0,121630.0,1.06356983]
[1755109319372,1.98508155,121640.0,121630.0,1.06356983]
[1755109320508,1.99670581,121640.0,121630.0,0.92946983]
[1755109320715,2.01209039,121640.0,121630.0,0.92946983]
[1755109320916,2.01209039,121640.0,121630.0,1.05830983]
[1755109321447,2.01525039,121640.0,121630.0,0.92946983]
[1755109321778,2.52368992,121640.0,121630.0,1.35778983]
[1755109322188,2.52368992,121640.0,121630.0,1.22894983]
[1755109322450,2.52368992,121640.0,121630.0,1.35778983]
[1755109322836,2.52368992,121640.0,121630.0,1.03190983]
[1755109323014,2.52368992,121640.0,121630.0,1.35778983]
[1755109323856,2.52568992,121640.0,121630.0,1.22894983]
[1755109324044,2.52268992,121640.0,121630.0,1.22894983]
[1755109324247,2.52268992,121640.0,121630.0,1.35778983]
[1755109324419,2.52996921,121640.0,121630.0,1.35778983]
[1755109324848,2.52696921,121640.0,121630.0,1.35778983]
[1755109325251,2.53096921,121640.0,121630.0,1.22894983]
[1755109325461,2.52896921,121640.0,121630.0,1.35778983]
[1755109325674,2.53196413,121640.0,121630.0,1.35778983]
[1755109326090,2.53196088,121640.0,121630.0,1.35778983]
[1755109327303,2.53196088,121640.0,121630.0,1.22894983]
[1755109327510,2.55696088,121640.0,121630.0,1.33378983]
[1755109328142,3.02839753,121640.0,121630.0,1.19673704]
[1755109328356,3.01069352,121640.0,121630.0,1.32557704]
[1755109328555,3.05169874,121640.0,121630.0,1.18852425]
[1755109328758,3.05169874,121640.0,121630.0,1.31736425]
[1755109328966,2.5979661,121640.0,121630.0,1.31736425]
[1755109329372,2.58027137,121640.0,121630.0,1.31736425]
[1755109329588,3.03100401,121640.0,121630.0,1.31736425]
[1755109330450,2.57727137,121640.0,121630.0,1.18852425]
[1755109330659,2.57727137,121640.0,121630.0,1.31736425]
[1755109331117,2.58127137,121640.0,121630.0,1.31736425]
[1755109331550,2.58127137,121640.0,121630.0,1.30915146]
[1755109331954,2.58127137,121640.0,121630.0,1.30093867]
[1755109332186,2.50325399,121640.0,121630.0,1.17209867]
[1755109332401,2.60325399,121640.0,121630.0,1.30093867]
[1755109332624,2.65325399,121640.0,121630.0,1.17209867]
[1755109332848,2.65325399,121640.0,121630.0,1.30093867]
[1755109334131,2.65325399,121640.0,121630.0,1.30149867]
[1755109334348,2.73573842,121640.0,121630.0,1.30145867]
[1755109334752,2.73569862,121640.0,121630.0,1.30145867]
[1755109335033,1.82823334,121640.0,121630.0,1.30145867]
[1755109335374,2.73569862,121640.0,121630.0,1.17209867]
[1755109335375,2.73569862,121640.0,121630.0,1.30157867]
[1755109335712,2.73569814,121640.0,121630.0,1.30157867]
[1755109336421,2.73569634,121640.0,121630.0,1.30157867]
[1755109337690,2.73569634,121640.0,121630.0,1.11900196]
[1755109338101,2.73569634,121640.0,121630.0,0.98952196]
[1755109338459,2.73569634,121640.0,121630.0,1.11896196]
[1755109338984,2.71824732,121640.0,121630.0,0.98952196]
[1755109339193,2.73569634,121640.0,121630.0,1.11896196]
[1755109339629,2.73569634,121640.0,121630.0,0.98952196]
[1755109339829,2.73569634,121640.0,121630.0,1.11892196]
[1755109340467,2.73569634,121640.0,121630.0,0.98952196]
[1755109340684,2.73569553,121640.0,121630.0,1.11892196]
[1755109341319,2.82202553,121640.0,121630.0,1.11892196]
[1755109341548,2.82202553,121640.0,121630.0,0.98952196]
[1755109341728,2.82202553,121640.0,121630.0,1.11884196]
[1755109342564,2.82202553,121640.0,121630.0,0.98952196]
[1755109342799,2.82202553,121640.0,121630.0,1.11884196]
[1755109343858,2.80669217,121640.0,121630.0,1.11884196]
[1755109344065,2.82202811,121640.0,121630.0,1.11884196]
[1755109344274,2.82202811,121640.0,121630.0,0.98952196]
[1755109344487,3.27576075,121640.0,121630.0,1.11892196]
[1755109344911,2.82202811,121640.0,121630.0,1.11892196]
[1755109345985,2.82202811,121640.0,121630.0,0.98952196]
[1755109346430,1.91456964,121640.0,121630.0,1.11066903]
[1755109346667,3.29344156,121640.0,121630.0,0.95730903]
[1755109346878,3.47128713,121640.0,121630.0,0.91122925]
[1755109347087,3.47128713,121640.0,121630.0,1.00264822]
[1755109347300,3.47128713,121640.0,121630.0,0.86471529]
[1755109347511,3.32617803,121640.0,121630.0,0.83597001]
[1755109347715,3.32617803,121640.0,121630.0,0.95743561]
[1755109347716,3.32717803,121640.0,121630.0,0.95743561]
[1755109347936,3.49559762,121640.0,121630.0,0.95743561]
[1755109348149,3.49559762,121640.0,121630.0,0.88564459]
[1755109348355,3.49559762,121640.0,121630.0,0.87743019]
[1755109348563,3.49559762,121640.0,121630.0,0.79530272]
[1755109348806,3.49559762,121640.0,121630.0,0.65589792]
[1755109348982,3.49559762,121640.0,121630.0,0.63104492]
[1755109349223,3.49559762,121640.0,121630.0,0.62283052]
[1755109349433,2.15654199,121640.0,121630.0,0.46428012]
[1755109349660,3.35332032,121640.0,121630.0,0.45606572]
[1755109349873,3.35332032,121640.0,121630.0,0.58610572]
[1755109350106,3.35332032,121640.0,121630.0,0.54914092]
[1755109350335,2.77165047,121640.0,121630.0,0.41910092]
[1755109350575,2.70703145,121640.0,121630.0,0.41604652]
[1755109350802,2.36703145,121640.0,121630.0,0.41604652]
[1755109351013,2.21312456,121640.0,121630.0,0.41604652]
[1755109351213,2.32494746,121640.0,121630.0,0.54616652]
[1755109351422,2.65727547,121640.0,121630.0,0.54616652]
[1755109351632,2.67472449,121640.0,121630.0,0.54616652]
[1755109351856,2.68240478,121640.0,121630.0,0.54616652]
[1755109352067,2.65727547,121640.0,121630.0,0.54616652]
[1755109352490,1.7749414,121640.0,121630.0,0.54616652]
[1755109352698,2.48227547,121640.0,121630.0,0.54612652]
[1755109352905,2.46693272,121640.0,121630.0,0.54612652]
[1755109353122,2.48998004,121640.0,121630.0,0.54612652]
[1755109353335,2.50742906,121640.0,121630.0,0.41604652]
[1755109353550,2.58991349,121640.0,121630.0,0.64860652]
[1755109355532,2.59054349,121640.0,121630.0,0.64559652]
[1755109355748,2.59630975,121640.0,121630.0,0.64559652]
[1755109356159,2.59631566,121640.0,121630.0,0.64860652]
[1755109356576,2.59631566,121640.0,121630.0,0.64852652]
[1755109357433,2.59631566,121640.0,121630.0,0.51852652]
[1755109357642,2.59631566,121640.0,121630.0,0.51336652]
[1755109358070,2.59631566,121640.0,121630.0,0.64328652]
[1755109358276,2.59631566,121640.0,121630.0,0.64543652]
[1755109358488,2.59631566,121640.0,121630.0,0.51551652]
[1755109358696,2.59631566,121640.0,121630.0,0.64543652]
[1755109359632,1.68885038,121640.0,121630.0,0.64543652]
[1755109359840,2.59631566,121640.0,121630.0,0.64543652]
[1755109359975,2.61845795,121640.0,121630.0,0.64543652]
[1755109360625,2.61045795,121640.0,121630.0,0.6446127]
[1755109361225,2.69690795,121640.0,121630.0,0.6446127]
[1755109362050,2.67577681,121640.0,121630.0,0.6446127]
[1755109362260,2.69692671,121640.0,121630.0,0.6446127]
[1755109362826,2.69692706,121640.0,121630.0,0.6446127]
[1755109364001,2.69692706,121640.0,121630.0,0.6424627]
[1755109364209,2.69990706,121640.0,121630.0,0.6424627]
[1755109364632,2.69990706,121640.0,121630.0,0.5125427]
[1755109364839,2.72490706,121640.0,121630.0,0.6423427]
[1755109365279,2.72490737,121640.0,121630.0,0.6422627]
[1755109366973,3.17864001,121640.0,121630.0,0.5125427]
[1755109367193,3.20802222,121640.0,121630.0,0.5125427]
[1755109367383,3.20802222,121640.0,121630.0,0.6421827]
[1755109367596,3.18587993,121640.0,121630.0,0.6421827]
[1755109367788,3.37361254,121640.0,121630.0,0.40184959]
[1755109368012,3.37361254,121640.0,121630.0,0.53148959]
[1755109368210,3.37361254,121640.0,121630.0,0.52327648]
[1755109368411,3.37361265,121640.0,121630.0,0.52327648]
[1755109368614,3.39575997,121640.0,121630.0,0.51506337]
[1755109368808,3.38675997,121640.0,121630.0,0.51506337]
[1755109369040,3.36861265,121640.0,121630.0,0.50685026]
[1755109369455,3.20419306,121640.0,121630.0,0.49863715]
[1755109369665,3.20419306,121640.0,121630.0,0.49855715]
[1755109369869,3.36861265,121640.0,121630.0,0.49034404]
[1755109370074,3.20719306,121640.0,121630.0,0.49034404]
[1755109370292,3.39375755,121640.0,121630.0,0.48213093]
[1755109370499,3.39375755,121640.0,121630.0,0.47399782]
[1755109370905,3.39375755,121640.0,121630.0,0.46578471]
[1755109371110,3.36437359,121640.0,121630.0,0.46578471]
[1755109371312,3.33553379,121640.0,121630.0,0.4575716]
[1755109371533,3.36436613,121640.0,121630.0,0.4575716]
[1755109371741,3.36436613,121640.0,121630.0,0.44935849]
[1755109372167,3.36436613,121640.0,121630.0,0.44114538]
[1755109372580,3.36436613,121640.0,121630.0,0.43293227]
[1755109372998,3.36436613,121640.0,121630.0,0.4247173]
[1755109373992,3.36436007,121640.0,121630.0,0.4247173]
[1755109374651,3.36436007,121640.0,121630.0,0.41650233]
[1755109375064,3.36436007,121640.0,121630.0,0.40828736]
[1755109375274,3.41361007,121640.0,121630.0,0.27864736]
[1755109375478,3.43956853,121640.0,121630.0,0.39987239]
[1755109375883,3.44756853,121640.0,121630.0,0.39165742]
[1755109376162,3.44756853,121640.0,121630.0,0.38344245]
[1755109376369,3.44756853,121640.0,121630.0,0.25400245]
[1755109376637,3.44756853,121640.0,121630.0,0.37522748]
[1755109377114,3.44756853,121640.0,121630.0,0.36701251]
[1755109377585,3.44756853,121640.0,121630.0,0.35879754]
[1755109377809,3.44756853,121640.0,121630.0,0.35058257]
[1755109378231,3.44756853,121640.0,121630.0,0.3423676]
[1755109378665,3.44756853,121640.0,121630.0,0.33415282]
[1755109378956,0.69205192,121620.0,121610.0,0.00301]
[1755109379207,1.76681966,121620.0,121610.0,0.20242679]
[1755109379614,1.77110041,121620.0,121610.0,0.20242679]
[1755109379804,1.77538163,121620.0,121610.0,0.20242679]
[1755109379964,1.77638163,121620.0,121610.0,0.20242679]
[1755109380390,1.80103763,121620.0,121610.0,0.33174679]
[1755109380549,1.79934514,121620.0,121610.0,0.33174679]
[1755109380804,1.82434514,121620.0,121610.0,0.33174679]
[1755109381703,0.91687986,121620.0,121610.0,0.20242679]
[1755109381916,1.82434514,121620.0,121610.0,0.33166679]
[1755109382345,1.79934514,121620.0,121610.0,0.33166679]
[1755109382552,1.79934514,121620.0,121610.0,0.20242679]
[1755109382763,1.82634514,121620.0,121610.0,0.33166679]
[1755109382994,1.84405219,121620.0,121610.0,0.33166679]
[1755109383200,1.8440523,121620.0,121610.0,0.33166679]
[1755109383404,1.8420523,121620.0,121610.0,0.33166679]
[1755109384528,1.8420523,121620.0,121610.0,0.20242679]
[1755109384749,0.93458702,121620.0,121610.0,0.20242679]
[1755109384960,1.36500917,121620.0,121610.0,0.33162679]
[1755109385616,1.36500917,121620.0,121610.0,0.24261679]
[1755109386198,1.27855917,121620.0,121610.0,0.37177679]
[1755109387329,1.27855917,121620.0,121610.0,0.24261679]
[1755109387700,1.27855917,121620.0,121610.0,0.37177679]
[1755109388286,1.27855917,121620.0,121610.0,0.24261679]
[1755109388587,1.27855917,121620.0,121610.0,0.37173679]
[1755109388796,1.27855917,121620.0,121610.0,0.24261679]
[1755109388964,1.27855917,121620.0,121610.0,0.37173679]
[1755109389487,1.2920138,121620.0,121610.0,0.24261679]
[1755109389673,1.2920138,121620.0,121610.0,0.37189679]
[1755109390694,1.28624753,121620.0,121610.0,0.37189679]
[1755109391090,1.26124753,121620.0,121610.0,0.37189679]
[1755109391306,1.01690496,121620.0,121610.0,0.24261679]
[1755109391521,0.67690496,121620.0,121610.0,0.37185679]
[1755109391732,1.00153381,121620.0,121610.0,0.37185679]
[1755109391908,1.01691215,121620.0,121610.0,0.37185679]
[1755109392359,1.03436115,121620.0,121610.0,0.37185679]
[1755109392564,1.00936115,121620.0,121610.0,0.24261679]
[1755109392801,1.01691213,121620.0,121610.0,0.37181679]
[1755109393017,0.99920508,121620.0,121610.0,0.37176125]
[1755109393230,1.0166541,121620.0,121610.0,0.37176125]
[1755109393454,1.03437562,121620.0,121610.0,0.37176125]
[1755109393861,1.11686005,121620.0,121610.0,0.37176125]
[1755109394269,1.11686005,121620.0,121610.0,0.24256125]
[1755109394470,1.03437562,121620.0,121610.0,0.24256125]
[1755109394604,1.0166541,121620.0,121610.0,0.37184125]
[1755109398622,1.0166541,121620.0,121610.0,0.37180125]
[1755109398824,1.0166541,121620.0,121610.0,0.33161125]
[1755109399010,1.09913853,121620.0,121610.0,0.33161125]
[1755109399209,1.0166541,121620.0,121610.0,0.33161125]
[1755109399469,1.0166541,121620.0,121610.0,0.33153125]
[1755109400112,0.56292146,121620.0,121610.0,0.33153125]
[1755109400316,1.0166541,121620.0,121610.0,0.43401125]
[1755109400930,1.01666087,121620.0,121610.0,0.43401125]
[1755109401780,1.0991453,121620.0,121610.0,0.43401125]
[1755109402542,1.01666087,121620.0,121610.0,0.30485125]
[1755109402753,1.01666087,121620.0,121610.0,0.43385125]
[1755109403481,1.01666087,121620.0,121610.0,0.30485125]
[1755109403826,1.01666087,121620.0,121610.0,0.43385125]
[1755109405869,1.01666087,121620.0,121610.0,0.30485125]
[1755109406254,1.01666087,121620.0,121610.0,0.43385125]
[1755109406793,0.99166087,121620.0,121610.0,0.43385125]
[1755109407227,1.01666087,121620.0,121610.0,0.43385125]
[1755109407437,0.99166087,121620.0,121610.0,0.43385125]
[1755109407650,1.01666087,121620.0,121610.0,0.43385125]
[1755109407858,0.56292823,121620.0,121610.0,0.43385125]
[1755109408054,1.01666087,121620.0,121610.0,0.43385125]
[1755109408661,1.0991453,121620.0,121610.0,0.43385125]
[1755109410017,1.09913929,121620.0,121610.0,0.43385125]
[1755109411011,1.01665486,121620.0,121610.0,0.43385125]
[1755109411578,1.01665486,121620.0,121610.0,0.30485125]
[1755109411778,0.99165486,121620.0,121610.0,0.43385125]
[1755109411986,0.56292222,121620.0,121610.0,0.34423125]
[1755109412215,1.01665486,121620.0,121610.0,0.34423125]
[1755109412415,0.54754314,121620.0,121610.0,0.47323125]
[1755109412616,0.99165357,121620.0,121610.0,0.47323125]
[1755109413069,1.01665357,121620.0,121610.0,0.47323125]
[1755109413774,0.99165357,121620.0,121610.0,0.47323125]
[1755109414217,1.01565357,121620.0,121610.0,0.47323125]
[1755109414725,0.99065357,121620.0,121610.0,0.47323125]
[1755109415448,1.01565357,121620.0,121610.0,0.47323125]
[1755109415659,0.99065357,121620.0,121610.0,0.47323125]
[1755109415863,1.01565357,121620.0,121610.0,0.47323125]
[1755109416069,0.96565077,121620.0,121610.0,0.47323125]
[1755109416277,0.99065077,121620.0,121610.0,0.47323125]
[1755109416453,1.01565077,121620.0,121610.0,0.47323125]
[1755109418324,1.01565077,121620.0,121610.0,0.43385125]
[1755109418448,1.02497571,121620.0,121610.0,0.43385125]
[1755109418656,1.01565077,121620.0,121610.0,0.43385125]
[1755109419008,1.00027578,121620.0,121610.0,0.30485125]
[1755109419234,1.01564988,121620.0,121610.0,0.43385125]
[1755109419872,0.38244902,121610.0,121570.0,0.45349445]
[1755109420089,0.08272325,121590.0,121570.0,0.45364127]
[1755109420239,0.08272325,121590.0,121580.0,0.19911]
[1755109421213,0.08272325,121590.0,121580.0,0.32811]
[1755109421537,0.08272325,121590.0,121580.0,0.43059]
[1755109421941,0.08272325,121590.0,121580.0,0.47593]
[1755109422719,0.08272325,121590.0,121580.0,0.92966264]
[1755109422923,0.08272325,121590.0,121580.0,0.96644294]
[1755109425559,0.08272325,121590.0,121580.0,0.5127103]
[1755109426305,0.08272325,121590.0,121580.0,0.96644294]
[1755109428364,0.08272325,121590.0,121580.0,0.86396294]
[1755109429714,0.08272325,121590.0,121580.0,0.4102303]
[1755109429954,0.08272325,121590.0,121580.0,0.86396294]
[1755109430373,0.10587615,121590.0,121580.0,0.66680294]
[1755109431508,0.10587615,121590.0,121580.0,0.96640294]
[1755109431717,0.10687615,121590.0,121580.0,0.96940294]
[1755109432133,0.10587615,121590.0,121580.0,0.96340294]
[1755109432368,0.10687615,121590.0,121580.0,0.84144294]
[1755109432585,0.10687615,121590.0,121580.0,0.97040294]
[1755109433125,0.10687615,121590.0,121580.0,0.5166703]
[1755109433331,0.10687615,121590.0,121580.0,0.84144294]
[1755109433534,0.10687615,121590.0,121580.0,0.86992294]
[1755109435540,0.10687615,121590.0,121580.0,0.67280294]
[1755109436390,0.10687615,121590.0,121580.0,0.67276294]
[1755109436589,0.10687615,121590.0,121580.0,0.54384294]
[1755109436799,0.10687615,121590.0,121580.0,0.67276294]
[1755109438622,0.10687615,121590.0,121580.0,0.63338294]
[1755109438861,0.10687615,121590.0,121580.0,0.50446294]
[1755109439062,0.10687615,121590.0,121580.0,0.63338294]
[1755109439414,0.10687615,121590.0,121580.0,0.50446294]
[1755109440031,0.10687615,121590.0,121580.0,0.63338294]
[1755109440236,0.10687615,121590.0,121580.0,0.1796503]
[1755109440371,0.10687615,121590.0,121580.0,0.46768264]
[1755109440567,0.10687615,121590.0,121580.0,0.59660264]
[1755109440772,0.10687615,121590.0,121580.0,0.46768264]
[1755109440973,0.10687615,121590.0,121580.0,0.50902264]
[1755109441181,0.10687615,121590.0,121580.0,0.63794264]
[1755109441395,0.08372325,121590.0,121580.0,0.70175159]
[1755109441589,0.10687615,121590.0,121580.0,1.00131159]
[1755109442482,0.10687615,121590.0,121580.0,0.76991159]
[1755109442711,0.10687615,121590.0,121580.0,0.89883159]
[1755109443158,0.10687615,121590.0,121580.0,0.57283159]
[1755109443385,0.10687615,121590.0,121580.0,0.70175159]
[1755109444065,0.10687615,121590.0,121580.0,0.24801895]
[1755109444268,0.10687615,121590.0,121580.0,0.63794264]
[1755109445406,0.10687615,121590.0,121580.0,0.59660264]
[1755109445796,0.10687615,121590.0,121580.0,0.59364264]
[1755109445917,0.10687615,121590.0,121580.0,0.46472264]
[1755109446123,0.10687615,121590.0,121580.0,0.59364264]
[1755109446323,0.10687615,121590.0,121580.0,0.65580099]
[1755109446963,0.10687615,121590.0,121580.0,0.65895099]
[1755109447481,0.10687615,121590.0,121580.0,0.20521835]
[1755109447723,0.10687615,121590.0,121580.0,0.59679264]
[1755109447968,0.10687615,121590.0,121580.0,0.13991]
[1755109448175,0.11228615,121590.0,121580.0,0.009]
[1755109448481,0.11228615,121590.0,121580.0,0.13792]
[1755109448694,0.10687615,121590.0,121580.0,0.14465917]
[1755109448904,0.10687615,121590.0,121580.0,0.01258917]
[1755109449124,0.10687615,121590.0,121580.0,0.59524181]
[1755109449278,0.10687615,121590.0,121580.0,0.13997]
[1755109449482,0.10687615,121590.0,121580.0,0.59370264]
[1755109450909,0.10903615,121590.0,121580.0,0.59370264]
[1755109451111,0.10903615,121590.0,121580.0,0.13997]
[1755109451343,0.11228615,121590.0,121580.0,0.13808]
[1755109451560,0.11228615,121590.0,121580.0,0.43764]
[1755109453364,0.11228615,121590.0,121580.0,0.89137264]
[1755109453581,0.11228615,121590.0,121580.0,0.43969]
[1755109453784,0.11228615,121590.0,121580.0,0.89342264]
[1755109454141,0.10903615,121590.0,121580.0,0.66186264]
[1755109454343,0.10903615,121590.0,121580.0,0.79090264]
[1755109454593,0.10903615,121590.0,121580.0,0.66186264]
[1755109454808,0.10687615,121590.0,121580.0,0.66186264]
[1755109454956,0.10687615,121590.0,121580.0,0.79090264]
[1755109455150,0.10687615,121590.0,121580.0,0.33717]
[1755109455407,0.10687615,121590.0,121580.0,0.79090264]
[1755109456717,0.10687615,121590.0,121580.0,0.59382264]
[1755109457560,0.11228615,121590.0,121580.0,0.59382264]
[1755109458240,0.11228615,121590.0,121580.0,0.14009]
[1755109458574,0.11228615,121590.0,121580.0,0.59382264]
[1755109459181,0.11228615,121590.0,121580.0,0.14009]
[1755109459391,0.11228615,121590.0,121580.0,0.60816132]
[1755109460142,0.11228615,121590.0,121580.0,0.02333868]